bitfinex-derivatives/quotes_BTCF0:USTF0_20241210
["timestamp","ask_amount","ask_price","bid_price","bid_amount"]
[1733848753562,0.3608,95188.0,95136.0,0.36092]
[1733848753763,0.052498,95188.0,95153.0,0.3608]
[1733848753959,0.3608,95186.0,95170.0,0.29057097]
[1733848754160,0.3608,95178.0,95160.0,0.29057097]
[1733848754458,0.052513,95162.0,95160.0,0.29057097]
[1733848754663,0.052521,95148.0,95146.0,0.3608]
[1733848754960,6e-05,95161.0,95147.0,0.02062695]
[1733848755172,0.3608,95169.0,95159.0,0.3608]
[1733848755462,0.3608,95169.0,95160.0,0.00012]
[1733848755865,0.00107818,95177.0,95159.0,0.30838354]
[1733848756068,0.00107818,95177.0,95161.0,0.29057097]
[1733848756362,0.05251,95167.0,95161.0,0.29057097]
[1733848756867,0.004,95162.0,95161.0,0.29057097]
[1733848757067,0.004,95162.0,95159.0,0.30838354]
[1733848757263,0.052513,95161.0,95159.0,0.30838354]
[1733848757466,6e-05,95160.0,95152.0,0.29057097]
[1733848757668,0.052516,95157.0,95152.0,0.29057097]
[1733848757861,6e-05,95153.0,95147.0,0.37390695]
[1733848758062,6e-05,95153.0,95152.0,0.3608]
[1733848758265,0.052516,95157.0,95152.0,0.3608]
[1733848758568,0.003,95162.0,95156.0,0.00012]
[1733848758869,0.052518,95153.0,95147.0,0.37390695]
[1733848759065,0.052519,95152.0,95147.0,0.37390695]
[1733848759268,0.052519,95152.0,95144.0,0.3608]
[1733848759767,0.3608,95146.0,95130.0,0.3093]
[1733848759964,0.3608,95156.0,95135.0,0.02118836]
[1733848760161,0.05252,95149.0,95135.0,0.02118836]
[1733848760469,0.002,95153.0,95135.0,0.02118836]
[1733848760470,0.052524,95141.0,95135.0,0.02118836]
[1733848760769,0.3608,95147.0,95135.0,0.02118836]
[1733848760968,0.3608,95147.0,95130.0,0.001]
[1733848761167,0.052529,95132.0,95130.0,0.001]
[1733848761367,0.00016667,95131.0,95130.0,0.01]
[1733848761759,0.00016667,95131.0,95116.0,0.31457522]
[1733848761964,0.3608,95117.0,95102.0,0.71516]
[1733848762169,0.052538,95116.0,95096.0,0.30537734]
[1733848762469,0.052548,95098.0,95096.0,0.00157734]
[1733848762663,0.052564,95070.0,95063.0,0.3608]
[1733848762870,0.3608,95075.0,95054.0,0.3608]
[1733848763067,0.052574,95052.0,95040.0,0.2476448]
[1733848763262,6e-05,95055.0,95040.0,0.2476448]
[1733848763467,0.3608,95048.0,95040.0,0.2476448]
[1733848763676,0.052579,95042.0,95040.0,0.2476448]
[1733848763866,0.3608,95048.0,95040.0,0.2476448]
[1733848764169,6e-05,95041.0,95040.0,0.2476448]
[1733848764571,0.36086,95041.0,95040.0,0.2496448]
[1733848764963,0.36086,95041.0,95040.0,0.002]
[1733848765578,0.413439,95041.0,95040.0,0.002]
[1733848766069,6e-05,95041.0,95036.0,5.739e-05]
[1733848766266,6e-05,95041.0,95040.0,0.41338]
[1733848766464,0.3608,95076.0,95040.0,0.3608]
[1733848766670,0.3608,95044.0,95040.0,0.009]
[1733848766874,0.052579,95041.0,95040.0,0.009]
[1733848767172,0.02077615,95035.0,95023.0,0.00157875]
[1733848767473,0.052585,95032.0,95023.0,0.00157875]
[1733848767664,6e-05,95024.0,95023.0,0.00157875]
[1733848767866,6e-05,95024.0,95015.0,0.3608]
[1733848767867,6e-05,95024.0,95015.0,0.30984229]
[1733848768068,0.00013531,95023.0,95015.0,0.30984229]
[1733848768259,6e-05,95016.0,95015.0,0.30984229]
[1733848768873,6e-05,95016.0,95015.0,0.72323629]
[1733848769071,6e-05,95016.0,95015.0,0.77476509]
[1733848770374,0.00106,95016.0,95015.0,0.77476509]
[1733848770579,0.00206,95016.0,95015.0,0.77476509]
[1733848770873,0.00206,95016.0,95015.0,0.72222863]
[1733848771088,0.00013531,95023.0,95022.0,0.05259]
[1733848771371,0.052563,95070.0,95025.0,0.29057097]
[1733848771574,0.052563,95070.0,95022.0,0.3]
[1733848771575,0.3608,95067.0,95049.0,0.3608]
[1733848771767,0.3608,95067.0,95047.0,0.3608]
[1733848771968,0.3608,95055.0,95038.0,0.00157822]
[1733848772170,0.3608,95039.0,95038.0,0.00157822]
[1733848773680,0.3658,95039.0,95038.0,0.00257822]
[1733848774070,0.3698,95039.0,95018.0,0.41407553]
[1733848774275,0.3698,95039.0,95032.0,0.3608]
[1733848774276,0.009,95039.0,95032.0,0.3608]
[1733848774477,9.16e-05,95054.0,95036.0,0.3608]
[1733848774787,9.16e-05,95054.0,95053.0,0.052693]
[1733848775168,0.3608,95081.0,95077.0,0.052559]
[1733848775368,0.052537,95118.0,95098.0,0.052548]
[1733848775575,0.27539022,95127.0,95080.0,0.3608]
[1733848775576,0.3608,95109.0,95096.0,0.3608]
[1733848775783,0.3608,95109.0,95080.0,0.65294861]
[1733848776078,0.3608,95091.0,95080.0,0.00157764]
[1733848776283,0.413357,95081.0,95080.0,0.00157764]
[1733848776674,0.713357,95081.0,95055.0,8.323e-05]
[1733848776875,0.3608,95060.0,95055.0,8.323e-05]
[1733848777178,6e-05,95056.0,95052.0,0.28914677]
[1733848777675,6e-05,95056.0,95046.0,0.65137097]
[1733848777676,6e-05,95053.0,95046.0,0.29057097]
[1733848777876,0.3608,95047.0,95021.0,0.3608]
[1733848778076,0.052583,95034.0,95010.0,0.3608976]
[1733848778282,0.052643,95034.0,95016.0,0.052593]
[1733848778474,0.052643,95034.0,95019.0,0.052592]
[1733848778879,6e-05,95034.0,95020.0,0.052591]
[1733848779073,6e-05,95034.0,95020.0,0.07340743]
[1733848779274,6e-05,95034.0,95023.0,0.052589]
[1733848779470,6e-05,95034.0,95020.0,0.02081643]
[1733848779681,6e-05,95034.0,95033.0,0.05416232]
[1733848780088,6e-05,95034.0,95027.0,0.3608]
[1733848780385,6e-05,95028.0,95027.0,0.413387]
[1733848780683,6e-05,95028.0,95027.0,0.052587]
[1733848781079,6e-05,95028.0,95022.0,0.3608]
[1733848781479,6e-05,95023.0,95022.0,0.41339]
[1733848781986,6e-05,95023.0,95022.0,0.3608]
[1733848782183,6e-05,95023.0,95022.0,0.41339]
[1733848782787,0.36086,95023.0,95010.0,9.76e-05]
[1733848782984,0.052602,95001.0,94986.0,0.3608]
[1733848783191,0.3608,95001.0,94975.0,0.3608]
[1733848783484,6e-05,94976.0,94975.0,0.3608]
[1733848783986,0.00016123,94976.0,94975.0,0.3608]
[1733848784487,0.00016123,94976.0,94975.0,0.3738]
[1733848784685,0.3608,94993.0,94975.0,0.3738]
[1733848784881,0.001,95001.0,94988.0,0.3608]
[1733848785081,0.001,95001.0,94983.0,0.052611]
[1733848785082,0.001,94976.0,94975.0,0.3738]
[1733848785387,0.001,94976.0,94975.0,0.426416]
[1733848785690,0.00106,94976.0,94975.0,0.426416]
[1733848785992,0.3608,95012.0,94989.0,0.052608]
[1733848786188,0.3608,95012.0,94987.0,0.3608]
[1733848786377,0.49056001,95032.0,94975.0,0.3718]
[1733848786378,0.052615,94976.0,94975.0,0.011]
[1733848786585,0.052626,94957.0,94941.0,0.3608]
[1733848786786,0.413426,94957.0,94933.0,0.052639]
[1733848786988,0.36086,94957.0,94927.0,0.3608]
[1733848787189,0.36086,94957.0,94920.0,0.31966]
[1733848787190,0.052633,94945.0,94920.0,0.31966]
[1733848787490,0.3608,94947.0,94914.0,0.31167315]
[1733848787491,6e-05,94928.0,94914.0,0.31167315]
[1733848787680,0.413448,94918.0,94914.0,0.31167315]
[1733848787879,0.413445,94924.0,94918.0,0.43635748]
[1733848788081,0.052647,94919.0,94918.0,0.43635748]
[1733848788284,0.052577,94919.0,94918.0,0.43635748]
[1733848788682,0.052577,94919.0,94911.0,0.31167315]
[1733848788683,0.052651,94912.0,94911.0,0.31167315]
[1733848788887,0.413451,94912.0,94911.0,0.31167315]
[1733848789088,0.713511,94912.0,94911.0,0.25913669]
[1733848789393,0.713511,94912.0,94874.0,0.3608]
[1733848789394,0.76621354,94912.0,94866.0,0.4937623]
[1733848789599,0.3608,94868.0,94840.0,0.05224791]
[1733848789886,6e-05,94841.0,94827.0,0.0008]
[1733848790085,0.052692,94839.0,94817.0,0.0210423]
[1733848790288,0.052692,94839.0,94811.0,0.00158222]
[1733848790289,6e-05,94828.0,94811.0,0.00158222]
[1733848790489,0.3608,94813.0,94811.0,0.00158222]
[1733848790691,0.413506,94813.0,94812.0,0.00527359]
[1733848790885,0.00010714,94827.0,94812.0,0.00527359]
[1733848791388,0.00010714,94827.0,94821.0,0.052701]
[1733848791583,0.00010714,94827.0,94823.0,0.0527]
[1733848791784,0.00010714,94827.0,94825.0,0.052699]
[1733848792095,0.3608,94857.0,94822.0,0.00527303]
[1733848792299,0.3608,94857.0,94811.0,0.00158222]
[1733848792300,0.3608,94823.0,94811.0,0.00158222]
[1733848792591,0.3608,94812.0,94780.0,0.29347789]
[1733848792778,0.3608,94802.0,94788.0,0.02154171]
[1733848792984,0.00017199,94801.0,94780.0,0.29347789]
[1733848793280,0.00017199,94801.0,94799.0,0.052714]
[1733848793488,0.00011199,94801.0,94800.0,0.3608]
[1733848793685,0.00011199,94801.0,94799.0,0.052714]
[1733848793884,0.00011199,94801.0,94791.0,0.18801802]
[1733848794097,0.00011199,94801.0,94799.0,0.052714]
[1733848794486,0.3608,94831.0,94800.0,0.001]
[1733848794681,0.1205927,94860.0,94829.0,0.3608]
[1733848794886,0.3608,94849.0,94829.0,0.3608]
[1733848795086,0.3608,94849.0,94800.0,0.29347789]
[1733848795087,0.3608,94831.0,94800.0,0.29347789]
[1733848795283,0.3608,94831.0,94808.0,0.3608]
[1733848795493,0.00010178,94830.0,94809.0,0.052708]
[1733848795993,0.00010178,94830.0,94806.0,0.02141317]
[1733848796301,0.05279878,94830.0,94806.0,0.02141317]
[1733848796591,0.3608,94821.0,94802.0,0.3608]
[1733848796792,0.3608,94813.0,94791.0,0.052718]
[1733848796996,0.3608,94813.0,94790.0,0.02164353]
[1733848796997,6e-05,94803.0,94796.0,0.3608]
[1733848797390,0.3608,94802.0,94790.0,0.00011447]
[1733848797600,6e-05,94803.0,94799.0,0.052713]
[1733848797895,0.3608,94813.0,94790.0,0.24630536]
[1733848798101,0.3608,94813.0,94787.0,0.3608]
[1733848798102,0.3608,94813.0,94802.0,0.00012]
[1733848798289,6e-05,94791.0,94787.0,0.3608]
[1733848798493,0.3608,94824.0,94790.0,0.3608]
[1733848798694,0.3608,94824.0,94812.0,0.3608]
[1733848798891,0.3608,94824.0,94823.0,0.00012]
[1733848799401,0.00110178,94830.0,94823.0,0.00012]
[1733848799603,0.00010178,94830.0,94823.0,0.00012]
[1733848799789,0.00010178,94830.0,94829.0,0.00012]
[1733848799994,0.00010178,94830.0,94829.0,0.413617]
[1733848800194,0.3608,94856.0,94829.0,0.36092]
[1733848800401,0.3608,94856.0,94840.0,0.3608]
[1733848800609,0.3608,94866.0,94855.0,0.00012]
[1733848800990,0.3608,94866.0,94865.0,0.00012]
[1733848801192,0.72170218,94866.0,94865.0,0.00012]
[1733848801503,0.72170218,94866.0,94838.0,0.3608]
[1733848801693,0.3608,94846.0,94820.0,0.29347789]
[1733848801890,0.3608,94835.0,94810.0,0.052707]
[1733848802089,0.3608,94835.0,94800.0,0.29347789]
[1733848802090,0.3608,94824.0,94800.0,0.052713]
[1733848802389,0.3608,94824.0,94797.0,0.40699319]
[1733848802390,0.36086,94824.0,94797.0,0.40699319]
[1733848802595,0.66086,94824.0,94797.0,7.919e-05]
[1733848802794,0.3608,94800.0,94797.0,7.919e-05]
[1733848802992,6e-05,94798.0,94797.0,7.919e-05]
[1733848803200,0.00014141,94798.0,94797.0,7.919e-05]
[1733848804307,0.00014141,94798.0,94793.0,0.30837418]
[1733848804603,0.00114141,94798.0,94797.0,0.001]
[1733848804905,0.29347789,94820.0,94797.0,0.001]
[1733848805107,0.052708,94809.0,94797.0,0.001]
[1733848805300,0.3608,94812.0,94797.0,0.001]
[1733848805494,0.3608,94848.0,94811.0,0.3608]
[1733848805703,0.3608,94869.0,94842.0,0.3608]
[1733848805906,0.36089501,94868.0,94854.0,0.3608]
[1733848806101,9.501e-05,94868.0,94854.0,0.3608]
[1733848806412,9.501e-05,94868.0,94866.0,0.052676]
[1733848806716,9.501e-05,94868.0,94854.0,0.3608]
[1733848806898,0.3608,94861.0,94842.0,0.00056]
[1733848807098,0.36086,94855.0,94843.0,0.052689]
[1733848807307,0.36086,94855.0,94831.0,0.3608]
[1733848807308,0.36086,94855.0,94840.0,0.24097288]
[1733848807506,0.36086,94855.0,94844.0,0.052688]
[1733848807807,0.36086,94855.0,94854.0,0.053683]
[1733848808009,0.36086,94855.0,94849.0,0.3608]
[1733848808010,6e-05,94855.0,94849.0,0.3608]
[1733848808196,6e-05,94855.0,94854.0,0.052683]
[1733848808396,6e-05,94855.0,94841.0,0.60852495]
[1733848808397,0.00106,94855.0,94844.0,0.0216199]
[1733848808718,0.00106,94855.0,94825.0,0.3608]
[1733848808719,0.36086,94845.0,94825.0,0.3608]
[1733848808901,0.36086,94845.0,94843.0,0.052689]
[1733848808902,6e-05,94845.0,94843.0,0.052689]
[1733848809208,0.00106,94855.0,94854.0,0.052683]
[1733848809719,0.00409501,94868.0,94864.0,0.052678]
[1733848810005,9.501e-05,94868.0,94867.0,0.00012]
[1733848810412,9.501e-05,94868.0,94847.0,0.052687]
[1733848810603,9.501e-05,94868.0,94866.0,0.052676]
[1733848810914,0.052655,94905.0,94887.0,0.052665]
[1733848811109,0.3608,94906.0,94890.0,0.29347789]
[1733848811306,0.3608,94917.0,94899.0,0.052658]
[1733848811501,0.3608,94908.0,94899.0,0.00012]
[1733848811702,0.46088218,94900.0,94899.0,0.00012]
[1733848811902,0.052665,94887.0,94886.0,8.695e-05]
[1733848812104,0.052659,94897.0,94886.0,8.695e-05]
[1733848812406,0.3608,94889.0,94886.0,8.695e-05]
[1733848812798,0.46144219,94900.0,94896.0,0.052659]
[1733848813005,0.46088218,94900.0,94876.0,0.3608]
[1733848813304,0.46088218,94900.0,94898.0,0.052659]
[1733848813508,0.46088218,94900.0,94885.0,0.052666]
[1733848813804,0.003,94889.0,94887.0,0.052665]
[1733848814219,0.003,94889.0,94887.0,0.001]
[1733848814424,0.413464,94888.0,94887.0,0.001]
[1733848814818,0.052665,94887.0,94885.0,0.009]
[1733848815320,6e-05,94886.0,94885.0,0.009]
[1733848816015,0.90006,94886.0,94885.0,0.009]
[1733848816216,6e-05,94886.0,94885.0,0.009]
[1733848816419,6e-05,94886.0,94879.0,0.00010978]
[1733848816716,0.36086,94880.0,94879.0,0.00010978]
[1733848817326,0.017,94886.0,94885.0,0.053666]
[1733848817511,0.015,94886.0,94885.0,0.001]
[1733848817716,0.015,94886.0,94885.0,0.00112]
[1733848818117,0.10008218,94900.0,94885.0,0.00112]
[1733848818325,0.10008218,94900.0,94899.0,0.052658]
[1733848818616,0.10008218,94900.0,94899.0,0.413578]
[1733848818812,0.18155278,94914.0,94904.0,0.052655]
[1733848819224,0.18155278,94914.0,94913.0,0.00012]
[1733848819431,0.54235278,94914.0,94913.0,0.00012]
[1733848819627,0.54235278,94914.0,94897.0,0.3608]
[1733848819928,0.00018137,94898.0,94897.0,0.052659]
[1733848820124,0.3608,94914.0,94897.0,0.052659]
[1733848820125,0.003,94914.0,94897.0,0.6608]
[1733848820326,0.006,94914.0,94913.0,0.41445]
[1733848820631,0.3608,94953.0,94913.0,1.12957]
[1733848820832,0.3608,94953.0,94936.0,0.3608]
[1733848821124,0.3608,94953.0,94945.0,0.00012]
[1733848821319,0.27607606,94946.0,94945.0,0.00012]
[1733848821928,0.3608,94972.0,94945.0,0.00012]
[1733848822232,0.29347789,94990.0,94956.0,0.00012]
[1733848822419,0.29791519,94981.0,94961.0,0.052623]
[1733848822630,0.3608,94976.0,94956.0,0.30177499]
[1733848822930,0.29347789,94970.0,94947.0,0.3608]
[1733848823131,0.3608,94948.0,94946.0,0.00011576]
[1733848823326,0.052632,94946.0,94945.0,0.00398653]
[1733848823521,0.413432,94946.0,94945.0,0.00398653]
[1733848823722,0.052644,94925.0,94919.0,0.00158036]
[1733848823929,0.3608,94920.0,94919.0,0.00158036]
[1733848824127,0.36086,94920.0,94919.0,0.00158036]
[1733848824434,0.66096581,94920.0,94919.0,0.00158036]
[1733848824930,0.36096581,94920.0,94894.0,7.745e-05]
[1733848825130,0.3608,94895.0,94894.0,7.745e-05]
[1733848825328,0.36086,94895.0,94894.0,7.745e-05]
[1733848825517,0.36086,94895.0,94889.0,0.27974759]
[1733848825721,0.36086,94895.0,94879.0,0.052669]
[1733848825928,0.3608,94887.0,94883.0,0.02064031]
[1733848826433,0.052662,94893.0,94883.0,0.02064031]
[1733848826632,0.3608,94895.0,94872.0,0.3608]
[1733848826935,0.3608,94895.0,94892.0,0.00012]
[1733848827525,0.052661,94894.0,94892.0,0.00012]
[1733848828425,0.3608,94906.0,94892.0,0.00012]
[1733848828627,0.052657,94902.0,94880.0,0.60189288]
[1733848828929,0.052657,94902.0,94869.0,0.3609272]
[1733848828930,6e-05,94881.0,94877.0,0.05267]
[1733848829138,6e-05,94881.0,94878.0,0.052669]
[1733848829334,0.005,94895.0,94877.0,0.05267]
[1733848829536,0.001,94894.0,94892.0,0.001]
[1733848829835,0.001,94894.0,94892.0,0.053662]
[1733848830029,0.003,94902.0,94890.0,0.052663]
[1733848830230,0.3608,94901.0,94880.0,0.02079393]
[1733848830430,6e-05,94891.0,94872.0,0.052673]
[1733848830626,6e-05,94891.0,94883.0,0.052667]
[1733848830826,0.005,94894.0,94886.0,0.052665]
[1733848831134,0.005,94894.0,94893.0,0.052781]
[1733848831636,0.005,94894.0,94882.0,0.30841499]
[1733848831928,0.005,94894.0,94883.0,0.052667]
[1733848832134,0.005,94894.0,94879.0,0.3608]
[1733848832330,0.001,94891.0,94880.0,0.29347789]
[1733848832526,0.001,94891.0,94890.0,0.413463]
[1733848833132,0.006,94894.0,94890.0,0.3608]
[1733848833532,0.00010581,94920.0,94893.0,0.00012]
[1733848833738,0.00010581,94920.0,94919.0,0.3608]
[1733848833943,0.00010581,94920.0,94919.0,0.36092]
[1733848834231,0.3608,94947.0,94919.0,0.36092]
[1733848834423,0.052629,94953.0,94919.0,0.36092]
[1733848834424,0.3608,94966.0,94952.0,0.052629]
[1733848834625,0.3608,94969.0,94946.0,0.00012]
[1733848834825,0.3608,94969.0,94940.0,0.29347789]
[1733848834826,0.3608,94969.0,94951.0,0.052629]
[1733848835029,0.3608,94969.0,94938.0,0.3608]
[1733848835228,0.3608,94969.0,94947.0,0.052631]
[1733848835229,0.41342,94969.0,94947.0,0.052631]
[1733848835432,0.3608,94969.0,94944.0,0.00012949]
[1733848835725,0.3608,94969.0,94968.0,0.00012]
[1733848835927,0.3608874,94969.0,94968.0,0.00012]
[1733848836126,0.3608874,94969.0,94956.0,0.052626]
[1733848836431,0.3608874,94969.0,94950.0,0.05263]
[1733848836432,0.4175074,94969.0,94950.0,0.05263]
[1733848836935,0.4175074,94969.0,94947.0,0.02102707]
[1733848837139,0.4175074,94969.0,94944.0,0.00012949]
[1733848837140,0.052626,94958.0,94944.0,0.00012949]
[1733848837437,6e-05,94948.0,94944.0,0.00012949]
[1733848837838,6e-05,94948.0,94941.0,0.02166158]
[1733848838142,6e-05,94948.0,94947.0,0.413432]
[1733848838433,6e-05,94948.0,94947.0,0.052632]
[1733848838637,6e-05,94948.0,94943.0,0.02107553]
[1733848839028,6e-05,94948.0,94941.0,0.3608]
[1733848839233,6e-05,94948.0,94943.0,0.052633]
[1733848839832,0.00306,94948.0,94941.0,0.3608]
[1733848840032,0.00306,94948.0,94946.0,0.052632]
[1733848840529,0.00306,94948.0,94933.0,9.333e-05]
[1733848840730,0.3608,94940.0,94933.0,9.333e-05]
[1733848841050,0.052651,94912.0,94895.0,0.31131225]
[1733848841228,0.7216,94910.0,94895.0,0.31131225]
[1733848841424,1.02166,94910.0,94895.0,0.31131225]
[1733848841627,0.05266,94896.0,94895.0,0.31131225]
[1733848841836,0.05274307,94896.0,94895.0,0.31131225]
[1733848842028,0.35280307,94896.0,94895.0,0.31131225]
[1733848842223,0.052665,94886.0,94876.0,0.37529327]
[1733848842440,0.052665,94886.0,94877.0,0.05267]
[1733848842441,0.3608,94879.0,94877.0,0.05267]
[1733848842636,0.29347789,94886.0,94879.0,0.052669]
[1733848842834,0.29347789,94886.0,94876.0,0.37529327]
[1733848842835,0.3608,94880.0,94876.0,0.37529327]
[1733848843335,0.05267,94878.0,94876.0,0.37529327]
[1733848844042,0.3608,94880.0,94866.0,0.50029339]
[1733848844043,0.052672,94874.0,94866.0,0.50029339]
[1733848844231,0.3608,94870.0,94866.0,0.50029339]
[1733848844431,6e-05,94867.0,94852.0,0.3608]
[1733848844635,0.0917319,94856.0,94855.0,0.052683]
[1733848844833,0.09171363,94856.0,94855.0,0.052683]
[1733848845134,0.3608,94870.0,94842.0,0.0015816]
[1733848845135,0.09171363,94857.0,94842.0,0.0015816]
[1733848845333,0.3608,94851.0,94845.0,0.052688]
[1733848845726,0.3608,94851.0,94848.0,0.052686]
[1733848845935,0.3608,94851.0,94849.0,0.052686]
[1733848846132,0.09171363,94856.0,94845.0,0.02077273]
[1733848846340,0.09171363,94854.0,94845.0,0.02077273]
[1733848846530,0.09171363,94854.0,94852.0,0.413484]
[1733848846933,0.3608,94867.0,94845.0,0.02277273]
[1733848846934,6e-05,94846.0,94845.0,0.02277273]
[1733848847539,6e-05,94846.0,94845.0,0.02377273]
[1733848847835,6e-05,94846.0,94845.0,0.08246073]
[1733848848031,6e-05,94846.0,94845.0,0.02977273]
[1733848848235,0.00018907,94846.0,94845.0,0.009]
[1733848848443,0.052693,94837.0,94817.0,0.02063275]
[1733848848629,0.052697,94830.0,94803.0,0.3608]
[1733848848936,0.052697,94830.0,94809.0,0.052708]
[1733848848937,0.3608,94823.0,94809.0,0.052708]
[1733848849138,0.3608,94823.0,94802.0,0.37560926]
[1733848849139,1.26136001,94837.0,94812.0,0.02155182]
[1733848849340,1.2608,94837.0,94814.0,0.052705]
[1733848849537,0.3608,94837.0,94820.0,0.3608]
[1733848849743,0.3608,94837.0,94821.0,0.052701]
[1733848849945,0.3608,94829.0,94815.0,7.971e-05]
[1733848850436,0.3608,94821.0,94815.0,7.971e-05]
[1733848851130,0.001,94830.0,94828.0,0.052698]
[1733848851534,0.001,94830.0,94829.0,0.00012]
[1733848851837,0.3608,94851.0,94840.0,0.052691]
[1733848852341,0.3608,94851.0,94829.0,0.00012]
[1733848852342,0.09151532,94855.0,94845.0,0.052808]
[1733848852538,0.09151532,94855.0,94854.0,0.052683]
[1733848852931,0.3608,94880.0,94861.0,0.00017399]
[1733848853128,0.3608,94880.0,94854.0,0.00012]
[1733848853440,0.3608,94880.0,94853.0,0.052684]
[1733848853441,6e-05,94855.0,94853.0,0.052684]
[1733848853741,6e-05,94854.0,94852.0,0.3608]
[1733848853937,6e-05,94854.0,94852.0,0.413484]
[1733848854132,6e-05,94853.0,94852.0,0.413484]
[1733848855141,0.00013223,94873.0,94871.0,0.052673]
[1733848856034,0.00013223,94873.0,94867.0,0.3608]
[1733848856238,0.00013223,94873.0,94871.0,0.052673]
[1733848857029,0.00613223,94873.0,94871.0,0.053673]
[1733848857443,0.01213223,94873.0,94871.0,0.001]
[1733848858542,0.06480523,94873.0,94871.0,0.001]
[1733848859049,0.06480523,94873.0,94858.0,0.00168461]
[1733848859340,0.052674,94872.0,94855.0,0.052682]
[1733848859644,6e-05,94856.0,94855.0,0.052682]
[1733848859834,6e-05,94856.0,94855.0,0.10628985]
[1733848860038,6e-05,94856.0,94855.0,0.052682]
[1733848860347,0.00313223,94873.0,94870.0,0.052674]
[1733848860535,0.00313223,94873.0,94858.0,0.052681]
[1733848860738,0.05580523,94873.0,94872.0,0.00012]
[1733848860933,0.35580523,94873.0,94872.0,0.00012]
[1733848861135,0.35580523,94873.0,94852.0,0.00158128]
[1733848861136,0.052684,94853.0,94852.0,0.00158128]
[1733848861332,0.3608,94853.0,94852.0,0.00158128]
[1733848861539,0.9,94872.0,94852.0,0.00158128]
[1733848861744,0.052683,94854.0,94852.0,0.00158128]
[1733848862042,0.3608,94856.0,94838.0,0.30323627]
[1733848862241,0.41349,94843.0,94838.0,0.30323627]
[1733848862445,0.052751,94839.0,94838.0,0.30323627]
[1733848862742,0.052696,94832.0,94827.0,0.0520536]
[1733848862947,0.052696,94832.0,94819.0,0.0015819]
[1733848863148,6e-05,94828.0,94819.0,0.05402542]
[1733848863447,6e-05,94820.0,94819.0,0.0015819]
[1733848863837,6e-05,94820.0,94800.0,0.1]
[1733848864146,0.36086,94801.0,94800.0,0.1]
[1733848864543,0.413573,94801.0,94800.0,0.1]
[1733848864940,0.052773,94801.0,94800.0,0.1]
[1733848865144,0.052773,94801.0,94800.0,0.04749499]
[1733848865445,0.052723,94783.0,94781.0,0.00010362]
[1733848865643,0.3608,94782.0,94781.0,0.00010362]
[1733848865842,0.36086,94782.0,94781.0,0.00010362]
[1733848866041,6e-05,94782.0,94781.0,0.00010362]
[1733848867439,0.36086,94782.0,94781.0,0.00010362]
[1733848867640,6e-05,94782.0,94781.0,0.00010362]
[1733848867840,0.00206,94782.0,94781.0,0.00010362]
[1733848868343,0.00206,94782.0,94774.0,0.052728]
[1733848868847,6e-05,94775.0,94765.0,0.3608]
[1733848869143,0.002,94782.0,94767.0,0.052731]
[1733848869653,0.70699689,94790.0,94781.0,0.00012]
[1733848870041,0.70699689,94790.0,94789.0,0.00012]
[1733848870243,0.413519,94790.0,94789.0,0.00012]
[1733848870651,0.052719,94790.0,94789.0,0.00012]
[1733848870851,0.0001273,94800.0,94789.0,0.00012]
[1733848871048,0.0001273,94800.0,94792.0,0.052717]
[1733848871351,0.0001273,94800.0,94799.0,0.00012]
[1733848871549,0.54426446,94831.0,94799.0,0.00012]
[1733848871550,0.3608,94831.0,94799.0,0.00012]
[1733848871744,0.3608,94831.0,94810.0,0.3608]
[1733848871942,0.3608,94831.0,94790.0,0.9962]
[1733848871943,0.052706,94813.0,94790.0,0.9962]
[1733848872139,0.65427789,94820.0,94782.0,0.3608]
[1733848872140,0.3608,94812.0,94782.0,0.3608]
[1733848872349,0.413513,94802.0,94790.0,0.0006]
[1733848872550,0.00010432,94801.0,94782.0,0.3608]
[1733848872745,0.052714,94799.0,94782.0,0.3608]
[1733848872941,6e-05,94783.0,94782.0,0.4126794]
[1733848873346,6e-05,94783.0,94780.0,0.37501683]
[1733848873549,6e-05,94783.0,94780.0,0.35436]
[1733848873755,0.36086,94781.0,94780.0,0.35436]
[1733848873955,6e-05,94781.0,94780.0,0.35436]
[1733848874250,6e-05,94781.0,94780.0,0.30185499]
[1733848874750,6e-05,94781.0,94780.0,0.66265499]
[1733848874950,6e-05,94781.0,94780.0,0.30185499]
[1733848875762,0.00106,94781.0,94780.0,0.30185499]
[1733848876547,0.00106,94781.0,94780.0,0.35457899]
[1733848877159,0.3608,94799.0,94782.0,0.052723]
[1733848877347,0.3608,94799.0,94780.0,0.64724522]
[1733848877545,0.3608,94799.0,94780.0,0.35376733]
[1733848877748,0.413514,94799.0,94780.0,0.35376733]
[1733848878148,0.3608,94799.0,94780.0,0.35376733]
[1733848878341,6e-05,94781.0,94780.0,0.69996922]
[1733848878546,6e-05,94781.0,94780.0,0.40649133]
[1733848880348,6e-05,94781.0,94780.0,0.30126232]
[1733848880651,0.00106,94781.0,94766.0,9.955e-05]
[1733848880957,0.41359,94769.0,94766.0,9.955e-05]
[1733848881146,0.05279,94769.0,94766.0,9.955e-05]
[1733848881347,6e-05,94769.0,94751.0,0.05274]
[1733848881850,6e-05,94752.0,94751.0,0.05274]
[1733848882256,6e-05,94752.0,94750.0,0.29347789]
[1733848882257,0.00016316,94752.0,94750.0,0.05143597]
[1733848882459,0.00016316,94752.0,94746.0,0.3608]
[1733848882652,6e-05,94751.0,94746.0,0.3608]
[1733848882848,6e-05,94747.0,94741.0,0.35452458]
[1733848883050,6e-05,94747.0,94741.0,8.458e-05]
[1733848883358,0.00010316,94752.0,94730.0,0.29347789]
[1733848883359,6e-05,94743.0,94742.0,0.05252227]
[1733848883556,6e-05,94743.0,94740.0,0.29347789]
[1733848883950,6e-05,94741.0,94740.0,0.59347789]
[1733848884155,0.00010316,94752.0,94742.0,0.003]
[1733848884347,0.00010316,94752.0,94751.0,7.551e-05]
[1733848884556,0.00010316,94752.0,94751.0,0.00019551]
[1733848885874,0.00010316,94752.0,94751.0,0.05293551]